[Event "Early-Titled-Tuesday-Blitz-February-06-2024"]
[Site "Chess.com"]
[Date "2024.02.06"]
[Round "1"]
[White "wyharga"]
[Black "kpio91"]
[Result "0-1"]
[WhiteElo "2439"]
[BlackElo "2821"]
[TimeControl "180+1"]
[EndTime "8:07:52 PST"]
[Termination "kpio91 won by resignation"]

1. e4 {[%clk 0:02:57.1]} 1... e6 {[%clk 0:02:59.8]} 2. d4 {[%clk 0:02:56.2]}
2... d5 {[%clk 0:03:00.1]} 3. Nd2 {[%clk 0:02:55.2]} 3... h6 {[%clk 0:02:58.3]}
4. Ngf3 {[%clk 0:02:54.5]} 4... Nf6 {[%clk 0:02:56.8]} 5. e5 {[%clk 0:02:53.4]}
5... Nfd7 {[%clk 0:02:57.2]} 6. Bd3 {[%clk 0:02:52.7]} 6... c5 {[%clk
0:02:57.4]} 7. c3 {[%clk 0:02:53]} 7... Nc6 {[%clk 0:02:57.5]} 8. O-O {[%clk
0:02:52]} 8... g5 {[%clk 0:02:57.6]} 9. dxc5 {[%clk 0:02:51.2]} 9... Ndxe5
{[%clk 0:02:37.9]} 10. Nxe5 {[%clk 0:02:48.9]} 10... Nxe5 {[%clk 0:02:38.2]} 11.
Nb3 {[%clk 0:02:45.5]} 11... Qc7 {[%clk 0:02:29.6]} 12. f4 {[%clk 0:02:27.9]}
12... Bxc5+ {[%clk 0:02:26.3]} 13. Kh1 {[%clk 0:02:26.3]} 13... Nxd3 {[%clk
0:02:22.8]} 14. Qxd3 {[%clk 0:02:25.8]} 14... Bd6 {[%clk 0:02:13]} 15. Nd4
{[%clk 0:02:19.2]} 15... Bd7 {[%clk 0:02:11]} 16. Nb5 {[%clk 0:01:59.3]} 16...
Bxb5 {[%clk 0:02:08.4]} 17. Qxb5+ {[%clk 0:01:58.6]} 17... Qc6 {[%clk
0:02:08.7]} 18. Qe2 {[%clk 0:01:44.2]} 18... O-O-O {[%clk 0:01:59]} 19. Be3
{[%clk 0:01:43.6]} 19... gxf4 {[%clk 0:01:51.5]} 20. Bxf4 {[%clk 0:01:41.4]}
20... Bxf4 {[%clk 0:01:51.4]} 21. Rxf4 {[%clk 0:01:40.4]} 21... f5 {[%clk
0:01:44.6]} 22. Re1 {[%clk 0:01:39.2]} 22... Rde8 {[%clk 0:01:34.2]} 23. Qe5
{[%clk 0:01:33.3]} 23... Qc7 {[%clk 0:01:28]} 24. Qe3 {[%clk 0:01:25]} 24... a6
{[%clk 0:01:09.7]} 25. b3 {[%clk 0:01:01.6]} 25... Kb8 {[%clk 0:01:05.5]} 26. c4
{[%clk 0:01:01.3]} 26... dxc4 {[%clk 0:01:04.8]} 27. Rxc4 {[%clk 0:01:00.9]}
27... Qd6 {[%clk 0:01:02.8]} 28. Rd4 {[%clk 0:00:58.4]} 28... Qb6 {[%clk
0:01:00.8]} 29. Qf4+ {[%clk 0:00:52.9]} 29... Qc7 {[%clk 0:00:47.7]} 30. Qf2
{[%clk 0:00:46.7]} 30... Rhg8 {[%clk 0:00:39.4]} 31. Rc4 {[%clk 0:00:45.5]}
31... Qd6 {[%clk 0:00:39.4]} 32. Rd4 {[%clk 0:00:35.9]} 32... Qc6 {[%clk
0:00:39.3]} 33. a4 {[%clk 0:00:31.8]} 33... Ka8 {[%clk 0:00:36.8]} 34. Rc4
{[%clk 0:00:29.8]} 34... Qd5 {[%clk 0:00:35.4]} 35. h3 {[%clk 0:00:26.8]} 35...
Rc8 {[%clk 0:00:26.6]} 36. Rec1 {[%clk 0:00:24.7]} 36... Rxc4 {[%clk 0:00:25.5]}
37. bxc4 {[%clk 0:00:25]} 37... Qc6 {[%clk 0:00:24.8]} 38. a5 {[%clk 0:00:25.2]}
38... f4 {[%clk 0:00:23.9]} 39. Rc2 {[%clk 0:00:23.6]} 39... e5 {[%clk
0:00:23.9]} 40. Re2 {[%clk 0:00:21]} 40... Re8 {[%clk 0:00:18.7]} 41. c5 {[%clk
0:00:17.6]} 41... Qa4 {[%clk 0:00:17.6]} 42. c6 {[%clk 0:00:16.6]} 42... Qxc6
{[%clk 0:00:17.5]} 43. Rc2 {[%clk 0:00:15.3]} 43... Qd5 {[%clk 0:00:17.3]} 44.
Qb6 {[%clk 0:00:12.8]} 44... e4 {[%clk 0:00:16.4]} 45. Rc5 {[%clk 0:00:12.2]}
45... Qd1+ {[%clk 0:00:14.2]} 46. Kh2 {[%clk 0:00:12.4]} 46... e3 {[%clk
0:00:14]} 47. Rc7 {[%clk 0:00:12]} 47... Qd5 {[%clk 0:00:13.7]} 48. Rc5 {[%clk
0:00:11.2]} 48... Qxc5 {[%clk 0:00:12.9]} 49. Qxc5 {[%clk 0:00:11.2]} 49... e2
{[%clk 0:00:13.4]} 50. Qf5 {[%clk 0:00:07.9]} 50... e1=Q {[%clk 0:00:13.2]} 51.
Qxf4 {[%clk 0:00:07.9]} 51... Qe5 {[%clk 0:00:13.2]} 0-1

[Event "Early-Titled-Tuesday-Blitz-February-06-2024"]
[Site "Chess.com"]
[Date "2024.02.06"]
[Round "1"]
[White "CarlosjPineror"]
[Black "topce"]
[Result "1-0"]
[WhiteElo "2726"]
[BlackElo "2402"]
[TimeControl "180+1"]
[EndTime "8:07:52 PST"]
[Termination "CarlosjPineror won by checkmate"]

1. e4 {[%clk 0:02:53.1]} 1... e6 {[%clk 0:02:58.7]} 2. d3 {[%clk 0:02:52]} 2...
d5 {[%clk 0:02:58.5]} 3. Nd2 {[%clk 0:02:52.9]} 3... Ne7 {[%clk 0:02:57.3]} 4.
Ngf3 {[%clk 0:02:52.7]} 4... c5 {[%clk 0:02:55.2]} 5. c3 {[%clk 0:02:52.7]} 5...
Nbc6 {[%clk 0:02:55.1]} 6. g3 {[%clk 0:02:51.7]} 6... g6 {[%clk 0:02:55.4]} 7.
Bg2 {[%clk 0:02:51.7]} 7... Bg7 {[%clk 0:02:56.1]} 8. O-O {[%clk 0:02:52.3]}
8... O-O {[%clk 0:02:55.7]} 9. Re1 {[%clk 0:02:52.9]} 9... Qc7 {[%clk
0:02:55.6]} 10. Qe2 {[%clk 0:02:52.7]} 10... dxe4 {[%clk 0:02:51]} 11. dxe4
{[%clk 0:02:52.3]} 11... b6 {[%clk 0:02:50.4]} 12. Nc4 {[%clk 0:02:51.3]} 12...
Ba6 {[%clk 0:02:49]} 13. a4 {[%clk 0:02:50.6]} 13... Na5 {[%clk 0:02:46.4]} 14.
Nfd2 {[%clk 0:02:50.4]} 14... Rad8 {[%clk 0:02:45.2]} 15. b3 {[%clk 0:02:50.4]}
15... Rxd2 {[%clk 0:02:41.8]} 16. Bxd2 {[%clk 0:02:49.1]} 16... Nxb3 {[%clk
0:02:41.9]} 17. Bf4 {[%clk 0:02:45.8]} 17... e5 {[%clk 0:02:40.4]} 18. Bg5
{[%clk 0:02:42.9]} 18... Nxa1 {[%clk 0:02:38.2]} 19. Bxe7 {[%clk 0:02:40.7]}
19... Qxe7 {[%clk 0:02:35.9]} 20. Rxa1 {[%clk 0:02:41.3]} 20... Qe6 {[%clk
0:02:34.3]} 21. Bf1 {[%clk 0:02:41.6]} 21... Rd8 {[%clk 0:02:31.2]} 22. Qa2
{[%clk 0:02:42.1]} 22... h5 {[%clk 0:02:21.6]} 23. Ne3 {[%clk 0:02:40.8]} 23...
Qxa2 {[%clk 0:02:20]} 24. Rxa2 {[%clk 0:02:39.9]} 24... Bb7 {[%clk 0:02:16.8]}
25. f3 {[%clk 0:02:23.6]} 25... Bh6 {[%clk 0:02:13.2]} 26. Kf2 {[%clk
0:02:17.9]} 26... Bc6 {[%clk 0:02:05.2]} 27. Bc4 {[%clk 0:02:07.8]} 27... Kg7
{[%clk 0:01:56.4]} 28. Nd5 {[%clk 0:02:06.1]} 28... Bxd5 {[%clk 0:01:43.8]} 29.
Bxd5 {[%clk 0:02:07]} 29... Rd6 {[%clk 0:01:43.6]} 30. c4 {[%clk 0:02:03.7]}
30... f5 {[%clk 0:01:33]} 31. Ke2 {[%clk 0:02:03.5]} 31... fxe4 {[%clk
0:01:32.4]} 32. fxe4 {[%clk 0:02:04.4]} 32... Rf6 {[%clk 0:01:25.2]} 33. a5
{[%clk 0:02:04.8]} 33... Bc1 {[%clk 0:01:17.3]} 34. axb6 {[%clk 0:02:04.3]}
34... axb6 {[%clk 0:01:16]} 35. Ra7+ {[%clk 0:02:04.5]} 35... Kh6 {[%clk
0:01:13.9]} 36. h4 {[%clk 0:02:04.9]} 36... g5 {[%clk 0:01:14.1]} 37. Re7 {[%clk
0:01:53.6]} 37... Bb2 {[%clk 0:01:10.4]} 38. Be6 {[%clk 0:01:40.6]} 38... gxh4
{[%clk 0:00:50.8]} 39. gxh4 {[%clk 0:01:40.1]} 39... Kg6 {[%clk 0:00:49.5]} 40.
Bf5+ {[%clk 0:01:39.2]} 40... Rxf5 {[%clk 0:00:50]} 41. exf5+ {[%clk 0:01:39]}
41... Kxf5 {[%clk 0:00:50.9]} 42. Rg7 {[%clk 0:01:27.2]} 42... e4 {[%clk
0:00:42]} 43. Rg5+ {[%clk 0:01:27.5]} 43... Kf4 {[%clk 0:00:42.2]} 44. Rxh5
{[%clk 0:01:28.1]} 44... Bd4 {[%clk 0:00:35.8]} 45. Rh6 {[%clk 0:01:26.1]} 45...
Kg4 {[%clk 0:00:35.9]} 46. Rh7 {[%clk 0:01:21.6]} 46... Kf4 {[%clk 0:00:33.3]}
47. Re7 {[%clk 0:01:16]} 47... Kg4 {[%clk 0:00:32.4]} 48. Rxe4+ {[%clk 0:01:16]}
48... Kh5 {[%clk 0:00:32.4]} 49. Kf3 {[%clk 0:01:15.1]} 49... Bf6 {[%clk
0:00:31.5]} 50. Kg3 {[%clk 0:01:14.9]} 50... Bc3 {[%clk 0:00:30.5]} 51. Kh3
{[%clk 0:01:10.7]} 51... Bd4 {[%clk 0:00:26.4]} 52. Rf4 {[%clk 0:01:08.7]} 52...
Kg6 {[%clk 0:00:25.2]} 53. Kg4 {[%clk 0:01:07.4]} 53... Be3 {[%clk 0:00:22]} 54.
h5+ {[%clk 0:01:08.3]} 54... Kg7 {[%clk 0:00:21.1]} 55. Re4 {[%clk 0:01:09.2]}
55... Bd4 {[%clk 0:00:20.7]} 56. Re6 {[%clk 0:01:09.3]} 56... Kf7 {[%clk
0:00:19.3]} 57. Rxb6 {[%clk 0:01:09.3]} 57... Kg7 {[%clk 0:00:18.8]} 58. Kf5
{[%clk 0:01:07.4]} 58... Kh7 {[%clk 0:00:18.6]} 59. Ke4 {[%clk 0:01:05.7]} 59...
Bg1 {[%clk 0:00:17.9]} 60. Kd5 {[%clk 0:01:05.3]} 60... Kg7 {[%clk 0:00:17.4]}
61. Rc6 {[%clk 0:01:05.3]} 61... Kh7 {[%clk 0:00:16.6]} 62. Rxc5 {[%clk
0:01:03.1]} 62... Kh6 {[%clk 0:00:17]} 63. Kc6 {[%clk 0:01:02.1]} 63... Bxc5
{[%clk 0:00:15.9]} 64. Kxc5 {[%clk 0:01:02.6]} 64... Kxh5 {[%clk 0:00:16.4]} 65.
Kb6 {[%clk 0:01:03.5]} 65... Kg6 {[%clk 0:00:17.1]} 66. c5 {[%clk 0:01:04.4]}
66... Kf7 {[%clk 0:00:18]} 67. Kb7 {[%clk 0:01:04.5]} 67... Ke8 {[%clk
0:00:18.9]} 68. c6 {[%clk 0:01:05.2]} 68... Kd8 {[%clk 0:00:19.3]} 69. c7+
{[%clk 0:01:06.1]} 69... Kd7 {[%clk 0:00:19.8]} 70. c8=Q+ {[%clk 0:01:06.9]}
70... Kd6 {[%clk 0:00:20.7]} 71. Qc6+ {[%clk 0:01:07.4]} 71... Ke5 {[%clk
0:00:20.9]} 72. Kc7 {[%clk 0:01:07]} 72... Kd4 {[%clk 0:00:21.8]} 73. Qb5 {[%clk
0:01:07.1]} 73... Ke4 {[%clk 0:00:21.9]} 74. Qc5 {[%clk 0:01:07.2]} 74... Kd3
{[%clk 0:00:22]} 75. Qb4 {[%clk 0:01:07.1]} 75... Ke3 {[%clk 0:00:19.4]} 76. Qc4
{[%clk 0:01:07.3]} 76... Kd2 {[%clk 0:00:19.4]} 77. Qb3 {[%clk 0:01:07.2]} 77...
Ke2 {[%clk 0:00:19]} 78. Qc3 {[%clk 0:01:07.5]} 78... Kf2 {[%clk 0:00:19.9]} 79.
Qd3 {[%clk 0:01:07.7]} 79... Kg2 {[%clk 0:00:19.6]} 80. Qe3 {[%clk 0:01:08.1]}
80... Kh2 {[%clk 0:00:19.9]} 81. Qg5 {[%clk 0:01:07.2]} 81... Kh1 {[%clk
0:00:19.2]} 82. Kd6 {[%clk 0:01:08.1]} 82... Kh2 {[%clk 0:00:19.3]} 83. Ke5
{[%clk 0:01:09]} 83... Kh1 {[%clk 0:00:20.1]} 84. Ke4 {[%clk 0:01:09.9]} 84...
Kh2 {[%clk 0:00:20.9]} 85. Kf3 {[%clk 0:01:10.8]} 85... Kh1 {[%clk 0:00:21.8]}
86. Qg2# {[%clk 0:01:10.6]} 1-0

[Event "Early-Titled-Tuesday-Blitz-February-06-2024"]
[Site "Chess.com"]
[Date "2024.02.06"]
[Round "1"]
[White "ilya2700"]
[Black "Baby_Legs"]
[Result "0-1"]
[WhiteElo "2311"]
[BlackElo "2636"]
[TimeControl "180+1"]
[EndTime "8:07:53 PST"]
[Termination "Baby_Legs won on time"]

1. d4 {[%clk 0:02:59.9]} 1... Nf6 {[%clk 0:02:59.8]} 2. c4 {[%clk 0:03:00.3]}
2... e6 {[%clk 0:03:00.2]} 3. Nf3 {[%clk 0:03:00.6]} 3... d5 {[%clk 0:02:58.2]}
4. Nc3 {[%clk 0:03:01]} 4... a6 {[%clk 0:02:58.2]} 5. cxd5 {[%clk 0:03:00.7]}
5... exd5 {[%clk 0:02:59.1]} 6. Bf4 {[%clk 0:03:01]} 6... Bd6 {[%clk 0:02:55.9]}
7. Be5 {[%clk 0:03:00]} 7... c6 {[%clk 0:02:42.7]} 8. e3 {[%clk 0:02:58.9]} 8...
Bg4 {[%clk 0:02:40.6]} 9. Be2 {[%clk 0:02:58.6]} 9... O-O {[%clk 0:02:38.1]} 10.
O-O {[%clk 0:02:51.8]} 10... Bxf3 {[%clk 0:02:38]} 11. Bxf3 {[%clk 0:02:46.7]}
11... Re8 {[%clk 0:02:32.7]} 12. Bxd6 {[%clk 0:02:33.2]} 12... Qxd6 {[%clk
0:02:33.6]} 13. Rb1 {[%clk 0:02:33.7]} 13... Nbd7 {[%clk 0:02:33.5]} 14. b4
{[%clk 0:02:28.7]} 14... b5 {[%clk 0:02:31.9]} 15. Qc2 {[%clk 0:01:57]} 15... a5
{[%clk 0:02:15.1]} 16. bxa5 {[%clk 0:01:49.5]} 16... Rxa5 {[%clk 0:02:13.7]} 17.
e4 {[%clk 0:01:49.1]} 17... dxe4 {[%clk 0:01:50.3]} 18. Nxe4 {[%clk 0:01:50]}
18... Qxd4 {[%clk 0:01:42.2]} 19. Nxf6+ {[%clk 0:01:29.7]} 19... Nxf6 {[%clk
0:01:39.8]} 20. Qxc6 {[%clk 0:01:25.9]} 20... Rxa2 {[%clk 0:01:33]} 21. Qxb5
{[%clk 0:01:24.2]} 21... g6 {[%clk 0:01:27.9]} 22. Rbd1 {[%clk 0:01:19.7]} 22...
Qf4 {[%clk 0:01:25.4]} 23. Qb3 {[%clk 0:01:10.5]} 23... Ra7 {[%clk 0:01:17.9]}
24. h3 {[%clk 0:01:04.8]} 24... Kg7 {[%clk 0:01:17.1]} 25. Rb1 {[%clk
0:01:01.2]} 25... Rae7 {[%clk 0:01:16]} 26. Qc3 {[%clk 0:00:57.3]} 26... Re6
{[%clk 0:01:13.2]} 27. Rb7 {[%clk 0:00:54.2]} 27... h5 {[%clk 0:01:10.7]} 28.
Qc7 {[%clk 0:00:49.4]} 28... Qxc7 {[%clk 0:01:08]} 29. Rxc7 {[%clk 0:00:50.3]}
29... g5 {[%clk 0:01:04.6]} 30. g3 {[%clk 0:00:35.1]} 30... Kg6 {[%clk
0:01:04.8]} 31. Rb1 {[%clk 0:00:29.5]} 31... R8e7 {[%clk 0:00:43.5]} 32. Rc5
{[%clk 0:00:20.5]} 32... Nd7 {[%clk 0:00:39.6]} 33. Ra5 {[%clk 0:00:19.6]} 33...
Ne5 {[%clk 0:00:39.5]} 34. Be4+ {[%clk 0:00:15.7]} 34... f5 {[%clk 0:00:39.8]}
35. Bg2 {[%clk 0:00:14.7]} 35... Rd6 {[%clk 0:00:39.9]} 36. Rbb5 {[%clk
0:00:13.6]} 36... Nc4 {[%clk 0:00:34.6]} 37. Ra1 {[%clk 0:00:10.9]} 37... h4
{[%clk 0:00:30]} 38. gxh4 {[%clk 0:00:10.2]} 38... gxh4 {[%clk 0:00:30.9]} 39.
Rb8 {[%clk 0:00:09.5]} 39... Kg5 {[%clk 0:00:28.6]} 40. Rg8+ {[%clk 0:00:09.3]}
40... Kf4 {[%clk 0:00:29]} 41. Rh8 {[%clk 0:00:08]} 41... Kg5 {[%clk 0:00:29.2]}
42. Rg8+ {[%clk 0:00:08.1]} 42... Rg6 {[%clk 0:00:28.8]} 43. Raa8 {[%clk
0:00:06]} 43... Ne5 {[%clk 0:00:26.5]} 44. Rxg6+ {[%clk 0:00:05.7]} 44... Nxg6
{[%clk 0:00:27.3]} 45. Ra1 {[%clk 0:00:03.4]} 45... Re5 {[%clk 0:00:27.1]} 46.
Rf1 {[%clk 0:00:03.3]} 46... Nf4 {[%clk 0:00:27.5]} 47. Ra1 {[%clk 0:00:03.3]}
47... Rc5 {[%clk 0:00:27.1]} 48. Kf1 {[%clk 0:00:03.3]} 48... Rb5 {[%clk
0:00:26.6]} 49. Rd1 {[%clk 0:00:03.2]} 49... Rb2 {[%clk 0:00:26.7]} 50. Rd8
{[%clk 0:00:02.2]} 50... Rb1+ {[%clk 0:00:26]} 0-1

[Event "Early-Titled-Tuesday-Blitz-February-06-2024"]
[Site "Chess.com"]
[Date "2024.02.06"]
[Round "1"]
[White "tetrix83"]
[Black "abelmat"]
[Result "1-0"]
[WhiteElo "2558"]
[BlackElo "2081"]
[TimeControl "180+1"]
[EndTime "8:07:53 PST"]
[Termination "tetrix83 won by resignation"]

1. e4 {[%clk 0:03:00.9]} 1... e6 {[%clk 0:02:59.9]} 2. d4 {[%clk 0:03:00]} 2...
d5 {[%clk 0:03:00.8]} 3. Nc3 {[%clk 0:02:59.5]} 3... dxe4 {[%clk 0:03:00.3]} 4.
Nxe4 {[%clk 0:02:58.9]} 4... Nd7 {[%clk 0:03:01.2]} 5. Nf3 {[%clk 0:02:58.1]}
5... Ngf6 {[%clk 0:03:02.1]} 6. Bd3 {[%clk 0:02:55]} 6... Be7 {[%clk 0:03:03]}
7. Qe2 {[%clk 0:02:53.2]} 7... O-O {[%clk 0:03:03.9]} 8. Nxf6+ {[%clk 0:02:47]}
8... Nxf6 {[%clk 0:03:02.7]} 9. Bg5 {[%clk 0:02:46.1]} 9... Nd5 {[%clk
0:02:34.5]} 10. h4 {[%clk 0:02:44]} 10... h6 {[%clk 0:02:30.3]} 11. Bd2 {[%clk
0:02:39.8]} 11... b6 {[%clk 0:02:22.7]} 12. O-O-O {[%clk 0:02:38.6]} 12... Bb7
{[%clk 0:02:20.6]} 13. g4 {[%clk 0:02:37.3]} 13... Nb4 {[%clk 0:02:18.3]} 14.
Bxb4 {[%clk 0:02:35.7]} 14... Bxb4 {[%clk 0:02:16.8]} 15. c3 {[%clk 0:02:34.2]}
15... Qd5 {[%clk 0:02:13.3]} 16. Rh3 {[%clk 0:02:31.4]} 16... Qxa2 {[%clk
0:02:06.5]} 17. cxb4 {[%clk 0:02:28.9]} 17... Bd5 {[%clk 0:02:01.3]} 18. Bb1
{[%clk 0:02:21.4]} 18... Qa4 {[%clk 0:01:53.7]} 19. Qc2 {[%clk 0:02:18.1]} 19...
Qxc2+ {[%clk 0:01:50.4]} 20. Bxc2 {[%clk 0:02:19]} 20... Rac8 {[%clk 0:01:46.5]}
21. g5 {[%clk 0:02:17.2]} 21... c5 {[%clk 0:01:39.4]} 22. bxc5 {[%clk
0:02:15.4]} 22... bxc5 {[%clk 0:01:39.3]} 23. gxh6 {[%clk 0:02:13.5]} 23... cxd4
{[%clk 0:01:35.6]} 24. hxg7 {[%clk 0:02:11.2]} 24... Kxg7 {[%clk 0:01:33.1]} 25.
Rg3+ {[%clk 0:02:07.6]} 25... Kf6 {[%clk 0:01:33]} 26. Rxd4 {[%clk 0:02:00.2]}
26... Bb3 {[%clk 0:01:28.4]} 27. Ne1 {[%clk 0:01:55.1]} 27... Bd5 {[%clk
0:01:20.2]} 28. Kb1 {[%clk 0:01:49.3]} 28... Ke7 {[%clk 0:01:17.8]} 29. h5
{[%clk 0:01:48.5]} 29... Rh8 {[%clk 0:01:17.4]} 30. Rh3 {[%clk 0:01:45.9]} 30...
Rh6 {[%clk 0:01:17.2]} 31. Nd3 {[%clk 0:01:43.1]} 31... Rb8 {[%clk 0:01:14.1]}
32. Nf4 {[%clk 0:01:41.3]} 32... Bc6 {[%clk 0:01:10.4]} 33. Rc4 {[%clk
0:01:37.8]} 33... Rb6 {[%clk 0:01:04.9]} 34. Rhc3 {[%clk 0:01:35.4]} 34... e5
{[%clk 0:00:59.1]} 35. Ng6+ {[%clk 0:01:31]} 35... fxg6 {[%clk 0:00:55.8]} 36.
Rxc6 {[%clk 0:01:30.3]} 36... Rxh5 {[%clk 0:00:51.1]} 37. Rxb6 {[%clk
0:01:25.2]} 37... axb6 {[%clk 0:00:51.1]} 38. Bxg6 {[%clk 0:01:24.3]} 38... Rh2
{[%clk 0:00:48.5]} 39. f3 {[%clk 0:01:22.1]} 39... Kd6 {[%clk 0:00:43.7]} 40.
Be4 {[%clk 0:01:22.8]} 40... b5 {[%clk 0:00:42.5]} 41. Rc6+ {[%clk 0:01:22.1]}
41... Ke7 {[%clk 0:00:41]} 42. Rc5 {[%clk 0:01:22.2]} 42... Rh1+ {[%clk
0:00:39.8]} 43. Ka2 {[%clk 0:01:21.6]} 43... b4 {[%clk 0:00:35.7]} 44. Rxe5+
{[%clk 0:01:21]} 44... Kd6 {[%clk 0:00:36.6]} 45. Rd5+ {[%clk 0:01:20]} 45...
Kc7 {[%clk 0:00:34.5]} 46. Rb5 {[%clk 0:01:19.5]} 46... Rc1 {[%clk 0:00:28.6]}
47. Rxb4 {[%clk 0:01:18.5]} 47... Re1 {[%clk 0:00:27.6]} 48. Kb3 {[%clk
0:01:17.8]} 48... Kd6 {[%clk 0:00:27.2]} 49. Kc4 {[%clk 0:01:15.4]} 49... Ke5
{[%clk 0:00:27.2]} 50. Rb5+ {[%clk 0:01:14.8]} 50... Kf4 {[%clk 0:00:25.7]} 51.
Rf5+ {[%clk 0:01:14.2]} 51... Ke3 {[%clk 0:00:25.3]} 52. b4 {[%clk 0:01:14.1]}
52... Rc1+ {[%clk 0:00:22.2]} 53. Kb5 {[%clk 0:01:12.1]} 53... Kd4 {[%clk
0:00:21.6]} 54. Rd5+ {[%clk 0:01:10.5]} 54... Ke3 {[%clk 0:00:21.4]} 55. Kb6
{[%clk 0:01:09.9]} 55... Kf4 {[%clk 0:00:20.1]} 56. b5 {[%clk 0:01:09.9]} 56...
Rc8 {[%clk 0:00:16.2]} 57. Kb7 {[%clk 0:01:07.3]} 57... Rf8 {[%clk 0:00:14.2]}
58. b6 {[%clk 0:01:08.2]} 58... Rf7+ {[%clk 0:00:13.9]} 59. Ka6 {[%clk
0:01:07.7]} 59... Rf8 {[%clk 0:00:12.9]} 60. b7 {[%clk 0:01:07.4]} 60... Rh8
{[%clk 0:00:11.9]} 61. Rc5 {[%clk 0:01:05.4]} 61... Ke3 {[%clk 0:00:07.1]} 62.
Rc8 {[%clk 0:01:04.4]} 62... Rh6+ {[%clk 0:00:08]} 63. Ka7 {[%clk 0:01:03.9]}
63... Rh7 {[%clk 0:00:07.5]} 64. Bxh7 {[%clk 0:01:03.1]} 64... Kd4 {[%clk
0:00:06.1]} 65. b8=Q {[%clk 0:01:00.6]} 1-0

[Event "Early-Titled-Tuesday-Blitz-February-06-2024"]
[Site "Chess.com"]
[Date "2024.02.06"]
[Round "1"]
[White "FMCarmona"]
[Black "Pelopidass"]
[Result "0-1"]
[WhiteElo "2156"]
[BlackElo "2566"]
[TimeControl "180+1"]
[EndTime "8:07:56 PST"]
[Termination "Pelopidass won on time"]

1. e4 {[%clk 0:02:59.2]} 1... e6 {[%clk 0:02:59.8]} 2. d4 {[%clk 0:02:53.4]}
2... d5 {[%clk 0:03:00.7]} 3. Nd2 {[%clk 0:02:50.5]} 3... Nf6 {[%clk 0:03:00.9]}
4. e5 {[%clk 0:02:48.5]} 4... Nfd7 {[%clk 0:03:01.4]} 5. Bd3 {[%clk 0:02:45]}
5... c5 {[%clk 0:03:01.5]} 6. c3 {[%clk 0:02:45]} 6... Nc6 {[%clk 0:03:01.9]} 7.
Ngf3 {[%clk 0:02:41]} 7... Qb6 {[%clk 0:02:57.9]} 8. O-O {[%clk 0:02:38.3]} 8...
cxd4 {[%clk 0:02:55.5]} 9. cxd4 {[%clk 0:02:38.3]} 9... Nxd4 {[%clk 0:02:56]}
10. Nxd4 {[%clk 0:02:38.5]} 10... Qxd4 {[%clk 0:02:56.8]} 11. Nf3 {[%clk
0:02:35.7]} 11... Qb6 {[%clk 0:02:57.3]} 12. Qa4 {[%clk 0:02:31.6]} 12... Qb4
{[%clk 0:02:52]} 13. Qc2 {[%clk 0:02:29]} 13... Nc5 {[%clk 0:02:40.3]} 14. Bd2
{[%clk 0:02:24.8]} 14... Qb6 {[%clk 0:02:29.6]} 15. Bxh7 {[%clk 0:02:05]} 15...
Bd7 {[%clk 0:02:21.4]} 16. Bd3 {[%clk 0:02:02]} 16... Nxd3 {[%clk 0:02:18.8]}
17. Qxd3 {[%clk 0:02:01.7]} 17... Bb5 {[%clk 0:02:19.2]} 18. Qb3 {[%clk
0:01:33.1]} 18... Bxf1 {[%clk 0:02:17.6]} 19. Qxb6 {[%clk 0:01:33.4]} 19... axb6
{[%clk 0:02:18.5]} 20. Kxf1 {[%clk 0:01:32.3]} 20... Be7 {[%clk 0:02:14.1]} 21.
h3 {[%clk 0:01:20.8]} 21... Kd7 {[%clk 0:02:14.3]} 22. Ke2 {[%clk 0:01:15.7]}
22... Ra4 {[%clk 0:02:14.6]} 23. b3 {[%clk 0:01:04.8]} 23... Ra3 {[%clk
0:02:13.3]} 24. Bc1 {[%clk 0:01:00.3]} 24... Ra6 {[%clk 0:02:13]} 25. Nd4 {[%clk
0:00:51]} 25... Rc8 {[%clk 0:02:08.8]} 26. a4 {[%clk 0:00:44.8]} 26... Bc5
{[%clk 0:01:56.3]} 27. Nb5 {[%clk 0:00:43.3]} 27... Rc6 {[%clk 0:01:46.8]} 28.
Bd2 {[%clk 0:00:38.3]} 28... Ra8 {[%clk 0:01:45]} 29. f4 {[%clk 0:00:36]} 29...
Be7 {[%clk 0:01:38.3]} 30. Kd3 {[%clk 0:00:33.1]} 30... g6 {[%clk 0:01:32.6]}
31. Be3 {[%clk 0:00:32]} 31... Bc5 {[%clk 0:01:29.7]} 32. Bd2 {[%clk 0:00:30.4]}
32... Rcc8 {[%clk 0:01:27.2]} 33. Rf1 {[%clk 0:00:28.9]} 33... Rh8 {[%clk
0:01:26.1]} 34. Rf3 {[%clk 0:00:20.1]} 34... Rac8 {[%clk 0:01:22.5]} 35. Be1
{[%clk 0:00:11.6]} 35... Rh5 {[%clk 0:01:15]} 36. Bd2 {[%clk 0:00:12]} 36... Be7
{[%clk 0:01:01.6]} 37. Be3 {[%clk 0:00:11.4]} 37... Bc5 {[%clk 0:01:00.9]} 38.
Bd4 {[%clk 0:00:11.6]} 38... Ke7 {[%clk 0:00:47]} 39. Bc3 {[%clk 0:00:10.8]}
39... g5 {[%clk 0:00:34.5]} 40. f5 {[%clk 0:00:09.7]} 40... exf5 {[%clk
0:00:32.2]} 41. Rxf5 {[%clk 0:00:09.6]} 41... Rg8 {[%clk 0:00:26.1]} 42. Bd2
{[%clk 0:00:09.7]} 42... Rg6 {[%clk 0:00:12.9]} 43. Nc3 {[%clk 0:00:07.8]} 43...
Ke6 {[%clk 0:00:12.8]} 44. Rf3 {[%clk 0:00:06.5]} 44... g4 {[%clk 0:00:12.3]}
45. hxg4 {[%clk 0:00:06.4]} 45... Rxg4 {[%clk 0:00:13.2]} 46. Rf6+ {[%clk
0:00:04.9]} 46... Kxe5 {[%clk 0:00:13.6]} 47. Rxf7 {[%clk 0:00:05.3]} 47... Rxg2
{[%clk 0:00:09.9]} 48. Kc2 {[%clk 0:00:04.2]} 48... Rhh2 {[%clk 0:00:09.4]} 49.
Nb1 {[%clk 0:00:03.3]} 49... Bb4 {[%clk 0:00:09.9]} 0-1